[Event "10th Cherry Blossom Classic 2023"]
[Site "Dulles"]
[Date "2023.05.26"]
[Round "2.1"]
[White "Roselli Mailhe, Bernardo"]
[Black "Antipov, Mikhail Al."]
[Result "1/2-1/2"]
[ECO "E11"]
[WhiteElo "2380"]
[BlackElo "2588"]
[Annotator "TA"]
[PlyCount "191"]
[EventDate "2023.05.24"]
[EventType "swiss"]
[EventCountry "USA"]
[SourceTitle "playchess.com"]
[Source "ChessBase"]
[SourceQuality "1"]
[TimeControl "5400+30"]

{[%evp 26,191,54,50,39,60,97,113,96,101,166,156,146,154,195,100,64,92,128,110,156,61,45,46,66,43,25,-4,-6,-6,-13,-2,0,-39,-41,-41,-55,-49,0,0,0,0,0,0,0,0,0,0,0,0,0,0,0,0,0,0,0,0,0,0,0,0,0,0,0,0,0,0,0,0,0,0,0,-23,-23,-23,136,72,64,0,0,0,0,0,1,0,15,8,8,-29968,8,8,8,8,14,0,0,-23,-23,-23,-23,-38,-38,-38,-38,-39,-23,-39,-39,-39,-39,-39,-39,-39,-39,-46,-30,-30,-23,-30,-30,-30,0,0,0,-30,0,0,0,0,0,0,0,0,0,0,0,0,0,0,0,0,0,0,0,0,0,0,0,0,0,0,0,0,0,0,0,0,0,0,0,0,0,0,0,0,0,0]} 1. d4 {[%emt 0:00:03]} Nf6 {[%emt 0:00:06]} 2. c4 {[%emt 0:00:04]} e6 {[%emt 0:00:04]} 3. Nf3 {[%emt 0:00:11]} Bb4+ {[%emt 0:00:11]} 4. Nbd2 {[%emt 0:01:04]} O-O {[%emt 0:00:09]} 5. a3 {[%emt 0:00:03]} Be7 {[%emt 0:00:05]} 6. e4 {[%emt 0:00:06]} d6 {[%emt 0:00:06]} 7. Bd3 {[%emt 0:00:49]} Nfd7 {[%emt 0:12:35]} 8. O-O {[%emt 0:07:07]} e5 {[%emt 0:00:27]} 9. Rb1 {[%emt 0:18:16]} a5 {[%emt 0:02:29]} 10. Bc2 {[%emt 0:08:30]} exd4 {[%emt 0:02:25]} 11. Nxd4 {[%emt 0:00:07]} Bf6 {[%emt 0:00:04]} 12. Ne2 {[%emt 0:11:28]} Ne5 {[%emt 0:06:01]} 13. f4 {[%emt 0:09:26]} Ng6 {[%emt 0:02:23]} 14. Nf3 {[%emt 0:02:48]} Re8 {[%emt 0:01:14]} 15. Ng3 {[%emt 0:02:11]} Na6 {[%emt 0:01:25]} 16. Be3 {[%emt 0:03:42]} Nh4 {[%emt 0:01:34]} 17. Nd4 {[%emt 0:03:56]} Nc5 {[%emt 0:01:30]} (17... Bd7 $16) 18. b4 {[%emt 0:02:04]} axb4 {[%emt 0:00:05]} 19. axb4 {[%emt 0:00:04]} Ne6 {[%emt 0:07:27]} 20. f5 {[%emt 0:07:32]} (20. Nh5 $18) 20... Nxd4 $16 {[%emt 0:05:11]} 21. Bxd4 {[%emt 0:00:05]} Bxd4+ {[%emt 0:01:35]} 22. Qxd4 {[%emt 0:00:06]} Qg5 {[%emt 0:00:02]} ({Better is} 22... b6) 23. Ra1 {[%emt 0:03:53]} (23. Rf2 $16) 23... Rxa1 {[%emt 0:00:46]} 24. Rxa1 {[%emt 0:00:04]} g6 {[%emt 0:02:46]} 25. Rf1 {[%emt 0:02:46]} Bd7 {[%emt 0:18:14]} 26. Qf2 {[%emt 0:03:55]} gxf5 {[%emt 0:01:04]} 27. Nxf5 {[%emt 0:07:45]} Nxf5 {[%emt 0:00:14]} 28. exf5 {[%emt 0:00:05]} b5 {[%emt 0:00:46]} 29. cxb5 {[%emt 0:01:56]} (29. h4 $5 {[%cal Rh4g5]} Qg4 30. cxb5 $15) 29... Bxb5 {[%emt 0:00:16]} 30. Re1 {[%emt 0:00:05]} Rxe1+ {[%emt 0:04:02]} 31. Qxe1 {[%emt 0:00:01]} Qf4 {[%emt 0:00:44]} (31... Bc6 $15 32. Be4 Bd7) 32. h4 $11 {[%emt 0:02:47]} d5 {[%emt 0:03:41]} 33. Qf2 {[%emt 0:01:15]} Qxb4 {[%emt 0:01:27]} 34. Qg3+ {[%emt 0:00:09]} Kf8 {[%emt 0:00:04]} 35. Qxc7 {[%emt 0:01:00]} Qd4+ {[%emt 0:00:06]} (35... Qxh4 36. Qc5+ Kg7 37. Qxb5 $16) 36. Kh2 {[%emt 0:00:06]} Qxh4+ {[%emt 0:00:04]} 37. Kg1 {[%emt 0:00:03]} Qe7 {[%emt 0:04:48]} 38. Qb6 {[%emt 0:01:22]} Qe1+ {[%emt 0:01:55]} 39. Kh2 {[%emt 0:00:06]} Qe5+ {[%emt 0:00:02]} 40. Kg1 {[%emt 0:01:04]} d4 {[%emt 0:04:09]} 41. f6 {[%emt 0:00:45]} Ke8 {[%emt 0:00:09]} 42. Qb7 {[%emt 0:01:07]} Qc5 {[%emt 0:07:24]} 43. Bf5 {[%emt 0:01:05]} d3+ {[%emt 0:00:16]} (43... Qxf5 $2 44. Qe7#) 44. Kh1 {[%emt 0:00:37]} Qc1+ {[%emt 0:02:18]} (44... Qxf5 $2 45. Qe7#) 45. Kh2 {[%emt 0:00:07]} Qf4+ {[%emt 0:00:03]} 46. Kh1 {[%emt 0:00:22]} Qh4+ {[%emt 0:00:53]} (46... Qxf5 $2 47. Qe7#) 47. Bh3 {[%emt 0:00:53]} Qe1+ {[%emt 0:00:09]} 48. Kh2 {[%emt 0:00:01]} Qe5+ {[%emt 0:00:06]} 49. Kh1 {[%emt 0:00:01]} (49. g3 $5 Kf8 50. Bf1 $15) 49... Kf8 {[%emt 0:00:44]} 50. Qa8+ {[%emt 0:00:58]} (50. Bd7 {simplifies} Bxd7 51. Qxd7 Qxf6 52. Qxd3 h6 53. Qg3) 50... Qe8 $2 {[%emt 0:00:11] [#]} (50... Be8 $11 51. Qa3+ Kg8 52. Qxd3 Qxf6) 51. Qa3+ $1 $16 {[%emt 0:00:37]} ({Of course not} 51. Qd5 $6 Qe3 $11) 51... Kg8 {[%emt 0:00:15]} 52. Qb4 {[%emt 0:00:54]} ({White should play} 52. Qc5 $1 $14 h6 53. Qb4) 52... Kh8 $1 $11 {[%emt 0:01:38]} 53. Bf5 {[%emt 0:00:22]} Qd8 {[%emt 0:05:41]} 54. Qh4 {[%emt 0:00:59]} ({Don't play} 54. Qxb5 d2 55. Bg4 d1=Q+ 56. Bxd1 Qxd1+ 57. Kh2 Qd6+ 58. Kh3 Qe6+ 59. g4 Qxf6 $15) 54... Qg8 {[%emt 0:00:04]} 55. Qf2 {[%emt 0:00:13]} Qg5 {[%emt 0:02:32]} 56. Qc5 {[%emt 0:00:11]} d2 {[%emt 0:01:24]} (56... Qh4+ $2 57. Bh3 Qe1+ 58. Kh2 $18) 57. Qf8+ {[%emt 0:00:16]} Qg8 {[%emt 0:00:05]} 58. Qd6 {[%emt 0:00:06]} Qa8 {[%emt 0:01:28]} 59. Kh2 {[%emt 0:01:14]} Qe8 {[%emt 0:00:09]} 60. Bg4 {[%emt 0:00:52]} Bc6 {[%emt 0:01:28]} 61. Qxd2 {[%emt 0:00:37]} Qe5+ {[%emt 0:00:04]} 62. Kg1 {[%emt 0:00:14]} Qxf6 {[%emt 0:00:08]} 63. Qf2 {[%emt 0:00:23]} Qa1+ {[%emt 0:00:51]} 64. Kh2 {[%emt 0:00:04]} Qe5+ {[%emt 0:00:07]} 65. Qg3 {[%emt 0:00:06]} Qf6 {[%emt 0:00:03]} 66. Bh3 {[%emt 0:00:55]} Be4 {[%emt 0:00:38]} 67. Qb8+ {[%emt 0:00:51]} Kg7 {[%emt 0:00:02]} 68. Qg3+ {[%emt 0:00:08]} Bg6 {[%emt 0:00:04]} 69. Bg4 {[%emt 0:00:16]} Qd4 {[%emt 0:01:12]} 70. Bf3 {[%emt 0:00:15]} h6 {[%emt 0:00:46]} 71. Bh5 $1 {[%emt 0:00:47]} Kf6 {[%emt 0:00:56]} 72. Bxg6 {[%emt 0:00:32]} (72. Qf3+ {is interesting.} Kg5 73. Bxg6 Qh4+ 74. Kg1) 72... fxg6 {[%emt 0:00:02]} 73. Qf3+ {[%emt 0:00:09]} Ke5 {[%emt 0:00:05]} 74. Qc6 {[%emt 0:00:44]} Qd6 {[%emt 0:00:51]} 75. Qa8 {[%emt 0:00:42]} g5 {[%emt 0:01:12]} 76. Kh1 {[%emt 0:00:20]} g4 {[%emt 0:00:39]} 77. Qa1+ {[%emt 0:00:46]} Qd4 {[%emt 0:00:31]} 78. Qe1+ {[%emt 0:01:03]} Kf4 {[%emt 0:00:40]} 79. Qc1+ {[%emt 0:00:29]} Qe3 {[%emt 0:01:01]} 80. Qc4+ {[%emt 0:01:25]} Kg3 {[%emt 0:00:41]} 81. Qc7+ {[%emt 0:00:00]} Kf2 {[%emt 0:00:26]} 82. Qf7+ {[%emt 0:00:00]} Ke1 {[%emt 0:00:15]} 83. Qf5 {[%emt 0:00:41]} Qd4 {[%emt 0:00:58]} (83... g3 $5 {[%cal Re3c1]} 84. Qb1+ Kf2 85. Qf5+ Ke2 86. Qc2+ Kf1 87. Qd1+ Qe1 88. Qf3+ Qf2 89. Qd1+ Qe1 $11) 84. Qe6+ {[%emt 0:00:15]} Kf2 {[%emt 0:00:08]} 85. Qf7+ {[%emt 0:00:26]} Kg3 {[%emt 0:00:50]} 86. Qc7+ {[%emt 0:00:03]} Qf4 {[%emt 0:00:24]} 87. Qc3+ {[%emt 0:00:03]} Kf2 {[%emt 0:00:35]} 88. Qc2+ {[%emt 0:00:36]} Ke1 {[%emt 0:00:05]} 89. Qb1+ {[%emt 0:00:06]} Ke2 {[%emt 0:00:19]} 90. Qc2+ {[%emt 0:00:35]} Ke1 {[%emt 0:00:27]} 91. Qb1+ {[%emt 0:00:06]} Kf2 {[%emt 0:00:06]} 92. Qc2+ {[%emt 0:01:00]} Kg3 {[%emt 0:00:04]} 93. Qc3+ {[%emt 0:00:31]} Kf2 {[%emt 0:00:21]} 94. Qc2+ {[%emt 0:00:09]} Ke1 {[%emt 0:00:06]} 95. Qb1+ {[%emt 0:00:06]} Ke2 {[%emt 0:00:03]} 96. Qc2+ {[%emt 0:00:58]} 1/2-1/2

[Event "10th Cherry Blossom Classic 2023"]
[Site "Dulles"]
[Date "2023.05.26"]
[Round "2.2"]
[White "Muzychuk, Anna"]
[Black "Khanin, Semen"]
[Result "1/2-1/2"]
[ECO "C54"]
[WhiteElo "2504"]
[BlackElo "2566"]
[Annotator "TA"]
[PlyCount "186"]
[EventDate "2023.05.24"]
[EventType "swiss"]
[EventCountry "USA"]
[SourceTitle "playchess.com"]
[Source "ChessBase"]
[SourceQuality "1"]
[TimeControl "5400+30"]

{[%evp 28,186,0,-27,0,0,-12,-5,-7,-25,0,0,0,0,0,0,-12,-7,-6,-140,-129,-131,-132,-202,-200,-244,-219,-206,-228,-237,-221,-239,-161,-190,-173,-202,-206,-229,-207,-220,-222,-193,-193,-206,-200,-215,-210,-202,-198,-288,-287,-288,-260,-537,-533,-510,-526,-597,-602,-672,-670,-721,-714,-698,-689,-591,-23,-29,-8,-10,0,0,0,-1,0,0,0,0,0,0,0,0,0,0,0,-8,8,8,8,8,8,7,7,7,7,7,7,7,7,7,7,7,7,7,7,7,7,7,7,7,7,7,7,7,7,7,7,7,7,7,7,7,7,7,7,7,7,7,7,7,7,7,7,7,8,8,8,8,8,8,8,8,8,8,8,8,8,8,8,8,8,8,8,8,8,8,8,11,18,18,59]} 1. e4 {[%emt 0:00:03]} e5 {[%emt 0:00:05]} 2. Nf3 {[%emt 0:00:06]} Nc6 {[%emt 0:00:04]} 3. Bc4 {[%emt 0:00:11]} Nf6 {[%emt 0:00:06]} 4. d3 {[%emt 0:00:04]} Bc5 {[%emt 0:00:06]} 5. c3 {[%emt 0:00:07]} d6 {[%emt 0:00:06]} 6. O-O {[%emt 0:00:14]} a6 {[%emt 0:00:31]} 7. a4 {[%emt 0:00:06]} Ba7 {[%emt 0:00:29]} 8. Re1 {[%emt 0:00:31]} h6 {[%emt 0:00:21]} 9. Nbd2 {[%emt 0:02:36]} g5 {[%emt 0:01:53]} 10. b4 {[%emt 0:02:03]} Nh7 {[%emt 0:00:10]} 11. Kh1 {[%emt 0:06:49]} O-O {[%emt 0:02:36]} 12. Qe2 {[%emt 0:17:00]} Qf6 {[%emt 0:02:46]} 13. Rf1 {[%emt 0:03:56]} Ne7 {[%emt 0:01:52]} 14. Ng1 {[%emt 0:01:24]} c6 {[%emt 0:04:58]} 15. Bb2 {[%emt 0:00:57]} d5 {[%emt 0:22:57]} (15... Ng6 $5 {[%cal Rb7b5]}) 16. Bb3 {[%emt 0:02:06]} Ng6 {[%emt 0:00:59]} 17. g3 {[%emt 0:05:36]} Be6 {[%emt 0:01:26]} 18. Rae1 {[%emt 0:05:11]} Rad8 {[%emt 0:03:19]} 19. d4 {[%emt 0:12:06]} exd4 {[%emt 0:10:12]} 20. cxd4 {[%emt 0:00:17]} dxe4 {[%emt 0:03:23]} (20... Bxd4 21. e5 Qxe5 22. Qxe5 Bxe5 23. Bxe5 $16) 21. Nxe4 {[%emt 0:01:03]} Qf5 {[%emt 0:00:46]} 22. Bxe6 {[%emt 0:10:35]} Qxe6 {[%emt 0:07:07]} 23. Qh5 {[%emt 0:02:21]} (23. Nc5 $11 Qd5+ 24. f3) 23... Bxd4 $17 {[%emt 0:03:07]} 24. Bxd4 {[%emt 0:11:14]} Rxd4 {[%emt 0:00:10]} 25. f3 {[%emt 0:00:04] [#]} (25. Nc3 $17 Qb3 26. Nd1) 25... Kg7 $1 $19 {[%emt 0:04:10]} (25... Rxb4 26. Nf2 Qf5 27. Qxh6 $15) 26. Nf2 {[%emt 0:01:16]} ({Don't go for} 26. Nxg5 $2 Qd5 $19) 26... Nf6 {[%emt 0:01:27]} 27. Rxe6 {[%emt 0:00:08]} Nxh5 {[%emt 0:00:10]} 28. Re4 {[%emt 0:00:03]} Rfd8 {[%emt 0:00:40]} 29. b5 {[%emt 0:04:17]} axb5 {[%emt 0:03:57]} (29... cxb5 $2 {too greedy.} 30. Rxd4 Rxd4 31. axb5) 30. axb5 {[%emt 0:00:06]} cxb5 {[%emt 0:00:32]} 31. Rb1 {[%emt 0:00:26]} Rd2 {[%emt 0:00:19]} 32. Nfh3 {[%emt 0:04:15]} Nf6 {[%emt 0:03:14]} 33. Re2 {[%emt 0:00:06]} Rxe2 {[%emt 0:04:23]} 34. Nxe2 {[%emt 0:00:07]} Rd2 {[%emt 0:02:07]} 35. Nhg1 {[%emt 0:01:09]} Nd5 {[%emt 0:00:15]} 36. Rxb5 {[%emt 0:01:24]} b6 {[%emt 0:00:03]} 37. Rb3 {[%emt 0:00:49]} Ne5 {[%emt 0:03:59]} 38. f4 {[%emt 0:02:05]} (38. h4 {might work better.}) 38... Nd3 $19 {[%emt 0:01:20]} 39. fxg5 {[%emt 0:01:21]} hxg5 {[%emt 0:00:03]} 40. h3 $2 {[%emt 0:02:02]} (40. g4 {was called for.}) 40... Nc5 $19 {[%emt 0:01:34]} 41. Rb1 {[%emt 0:00:07]} Ne4 {[%emt 0:00:59]} 42. Rb3 {[%emt 0:01:34]} f5 {[%emt 0:03:57]} 43. Kg2 {[%emt 0:01:10]} g4 {[%emt 0:01:49]} 44. hxg4 {[%emt 0:01:02]} fxg4 {[%emt 0:00:05]} 45. Kf1 {[%emt 0:00:30]} b5 {[%emt 0:05:20]} 46. Nf4 {[%emt 0:00:50]} Ndc3 $2 {[%emt 0:02:55]} (46... Rc2 $19 {( -> ...Nxf4)} 47. Nxd5 Nd2+ 48. Ke1 Nxb3) 47. Nge2 $11 {[%emt 0:00:49]} Rc2 {[%emt 0:00:33]} 48. Rb4 {[%emt 0:01:15]} Kf6 {[%emt 0:00:23]} 49. Nxc3 $1 {[%emt 0:00:55]} Nxc3 {[%emt 0:00:05]} ({Don't play} 49... Nxg3+ 50. Ke1 $16) 50. Nd3 {[%emt 0:00:15]} Kf5 {[%emt 0:01:07]} 51. Rf4+ {[%emt 0:00:44]} Kg5 {[%emt 0:00:17]} 52. Nf2 {[%emt 0:00:25]} Nd5 {[%emt 0:00:15]} 53. Rxg4+ {[%emt 0:00:22]} Kf5 {[%emt 0:00:03]} 54. Rd4 {[%emt 0:00:43]} Ke5 {[%emt 0:00:22]} 55. Re4+ {[%emt 0:00:04]} Kd6 {[%emt 0:00:02]} 56. Nd3 {[%emt 0:00:53]} Rd2 {[%emt 0:00:17]} 57. Rd4 {[%emt 0:00:32]} b4 {[%emt 0:02:00]} 58. Ke1 {[%emt 0:00:16]} Rg2 $1 {[%emt 0:00:05]} 59. Nxb4 {[%emt 0:00:39]} Rxg3 {[%emt 0:00:32]} 60. Rxd5+ {[%emt 0:00:06]} Ke6 {[%emt 0:00:02]} 61. Ke2 {[%emt 0:00:42]} Rb3 {[%emt 0:00:14]} 62. Rd4 {[%emt 0:00:05]} Ke5 {[%emt 0:00:18]} 63. Rh4 {[%emt 0:00:07]} Rg3 {[%emt 0:00:40]} 64. Nd3+ {[%emt 0:00:06]} Kd5 {[%emt 0:00:05]} 65. Kd2 {[%emt 0:00:15]} Rg8 {[%emt 0:00:24]} 66. Nb4+ {[%emt 0:00:12]} Ke5 {[%emt 0:00:08]} 67. Nc6+ {[%emt 0:00:54]} Kd6 {[%emt 0:00:04]} 68. Nd4 {[%emt 0:00:25]} Kd5 {[%emt 0:00:18]} 69. Ke3 {[%emt 0:00:04]} Rg1 {[%emt 0:01:08]} 70. Rh5+ {[%emt 0:00:26]} Kd6 {[%emt 0:00:16]} 71. Nf3 {[%emt 0:00:33]} Rg4 {[%emt 0:00:09]} 72. Ra5 {[%emt 0:01:14]} Rg3 {[%emt 0:01:03]} 73. Kf4 {[%emt 0:01:05]} Rg2 {[%emt 0:00:35]} 74. Nd4 {[%emt 0:00:42]} Rg1 {[%emt 0:00:20]} 75. Nf5+ {[%emt 0:00:06]} Ke6 {[%emt 0:00:15]} 76. Ne3 {[%emt 0:00:10]} Kd6 {[%emt 0:00:41]} 77. Ke4 {[%emt 0:00:11]} Rh1 {[%emt 0:01:17]} 78. Nf5+ {[%emt 0:00:24]} Kc6 {[%emt 0:00:12]} 79. Nd4+ {[%emt 0:00:06]} Kd6 {[%emt 0:00:38]} 80. Ra6+ {[%emt 0:00:23]} Ke7 {[%emt 0:00:31]} 81. Nf5+ {[%emt 0:01:20]} Kd7 {[%emt 0:00:09]} 82. Rg6 {[%emt 0:01:00]} Re1+ {[%emt 0:00:12]} 83. Kd5 {[%emt 0:00:13]} Rd1+ {[%emt 0:00:09]} 84. Nd4 {[%emt 0:00:05]} Ke7 {[%emt 0:00:03]} 85. Ra6 {[%emt 0:01:21]} Kf7 {[%emt 0:00:24]} 86. Ke5 {[%emt 0:00:08]} Re1+ {[%emt 0:00:05]} 87. Kf4 {[%emt 0:00:03]} Rf1+ {[%emt 0:00:15]} 88. Nf3 {[%emt 0:00:06]} Ke7 {[%emt 0:00:05]} 89. Ke4 {[%emt 0:00:06]} Rh1 {[%emt 0:00:20]} 90. Ng5 {[%emt 0:01:00]} Re1+ {[%emt 0:00:25]} 91. Kf5 {[%emt 0:00:07]} Rf1+ {[%emt 0:00:09]} 92. Ke5 {[%emt 0:00:04]} Re1+ {[%emt 0:00:04]} 93. Ne4 {[%emt 0:00:04]} Kd7 {[%emt 0:00:02]} 1/2-1/2

[Event "10th Cherry Blossom Classic 2023"]
[Site "Dulles"]
[Date "2023.05.26"]
[Round "2.3"]
[White "Sinha, Sahil"]
[Black "Kantor, Gergely"]
[Result "1/2-1/2"]
[ECO "E32"]
[WhiteElo "2317"]
[BlackElo "2535"]
[Annotator "TA"]
[PlyCount "44"]
[EventDate "2023.05.24"]
[EventType "swiss"]
[EventCountry "USA"]
[SourceTitle "playchess.com"]
[Source "ChessBase"]
[SourceQuality "1"]
[TimeControl "5400+30"]

{[%evp 11,44,0,25,13,8,7,10,10,14,0,0,0,11,0,10,0,0,-10,0,-12,-6,-10,0,0,0,0,7,7,7,0,27,27,27,27,44]} 1. d4 {[%emt 0:00:00]} Nf6 {[%emt 0:03:47]} 2. c4 {[%emt 0:00:10]} e6 {[%emt 0:01:02]} 3. Nc3 {[%emt 0:00:10]} Bb4 {[%emt 0:01:16]} 4. Qc2 {[%emt 0:00:07]} O-O {[%emt 0:01:10]} 5. Nf3 {[%emt 0:00:06]} d6 {[%emt 0:01:05]} 6. Bd2 {[%emt 0:00:47]} c5 {[%emt 0:03:18]} 7. a3 $1 {[%emt 0:04:04][%mdl 4] now scores much better than the old 7.dxc5. E32: Nimzo-Indian: Classical (4 Qc2): 4...0-0.} Bxc3 {[%emt 0:16:00]} 8. Bxc3 {[%emt 0:01:00]} cxd4 {[%emt 0:00:09]} 9. Nxd4 {[%emt 0:03:27] The position is equal.} e5 {[%emt 0:00:30]} 10. Nf3 {[%emt 0:04:20]} Qc7 {[%emt 0:04:30]} 11. e3 {[%emt 0:03:45] [#]} a5 $146 {[%emt 0:05:21]} ({Predecessor:} 11... Na6 12. b4 Be6 13. Bb2 Rac8 14. Rc1 b5 15. c5 dxc5 16. Qb1 Qb7 17. Bxe5 cxb4 18. Rxc8 Rxc8 19. Bxf6 gxf6 20. axb4 {0-1 Terrieux,K (2455)-Winants,L (2513) FRA-chT1B 0809 2008 (11.2)}) 12. Be2 {[%emt 0:05:17]} Bg4 {[%emt 0:05:26][%cal Bc8g4,Bg4h5,Bh5g6][%mdl 32]} 13. Rd1 {[%emt 0:08:41]} Nbd7 {[%emt 0:02:19]} 14. h3 {[%emt 0:11:09]} Bh5 {[%emt 0:05:37]} 15. O-O {[%emt 0:00:49]} Rfc8 {[%emt 0:09:29][%cal Bf8c8,Bc8a8,Ba8a1][%mdl 32]} 16. Rc1 {[%emt 0:04:04]} Bg6 {[%emt 0:11:26]} 17. Qd1 {[%emt 0:01:23]} h6 {[%emt 0:03:25]} 18. b4 {[%emt 0:07:08]} axb4 {[%emt 0:01:24]} 19. axb4 {[%emt 0:01:41]} Ra2 {[%emt 0:03:08]} 20. Ra1 {[%emt 0:05:07]} Rca8 {[%emt 0:04:09]} 21. Qb3 {[%emt 0:04:22]} Rxa1 {[%emt 0:08:15]} 22. Rxa1 {[%emt 0:00:34]} Rxa1+ {[%emt 0:00:32] Weighted Error Value: White=0.04 (flawless) /Black=0.06 (flawless)} 1/2-1/2

[Event "10th Cherry Blossom Classic 2023"]
[Site "Dulles"]
[Date "2023.05.26"]
[Round "2.4"]
[White "Druska, Juraj"]
[Black "Ouellet, Maili-Jade"]
[Result "1/2-1/2"]
[ECO "B22"]
[WhiteElo "2496"]
[BlackElo "2246"]
[Annotator "TA"]
[PlyCount "133"]
[EventDate "2023.05.24"]
[EventType "swiss"]
[EventCountry "USA"]
[SourceTitle "playchess.com"]
[Source "ChessBase"]
[SourceQuality "1"]
[TimeControl "5400+30"]

{[%evp 13,133,27,31,26,35,27,29,23,35,24,61,73,46,0,2,0,10,0,0,0,0,0,0,0,10,10,10,9,12,0,12,0,0,0,0,0,0,0,0,0,0,0,0,0,0,-2,-2,-12,-13,-12,0,0,0,-24,0,-1,0,0,0,0,0,-1,0,0,0,0,50,37,132,131,132,114,124,64,73,73,81,0,0,0,0,0,0,0,20,0,0,0,8,0,0,0,0,0,0,0,0,0,0,0,0,0,0,0,0,0,0,0,0,0,0,0,0,0,0,0,0,0,0,0,0,0]} 1. e4 {[%emt 0:02:19]} c5 {[%emt 0:00:11]} 2. c3 {[%emt 0:00:11]} d5 {[%emt 0:00:28]} 3. exd5 {[%emt 0:00:06]} Qxd5 {[%emt 0:00:06]} 4. d4 {[%emt 0:01:08]} Nf6 {[%emt 0:00:23]} 5. Nf3 {[%emt 0:00:07]} e6 {[%emt 0:00:13]} 6. Na3 {[%emt 0:00:20]} Qd8 {[%emt 0:00:11]} 7. Nc4 {[%emt 0:00:34] is the new trend.} Nc6 {[%emt 0:00:07]} 8. Be3 {[%emt 0:00:19] B22: Sicilian: 2 c3.} Nd5 {[%emt 0:13:15]} 9. Bd3 {[%emt 0:00:26]} cxd4 {[%emt 0:02:33]} 10. Nxd4 {[%emt 0:00:57] [#] White has an edge.} Bd7 $146 {[%emt 0:27:26]} ({Predecessor:} 10... Nxe3 11. fxe3 Qh4+ 12. g3 Qg5 13. Nb5 Qd8 14. O-O Be7 15. Qh5 g6 16. Qh6 Bf8 17. Qf4 f5 18. Rad1 Rb8 19. Bxf5 Qf6 20. Nc7+ {1-0 Mammadov,Z (2453)-Guliev,L (2386) Nakhchivan op 2014 (6)}) 11. Qf3 {[%emt 0:48:32]} Qc7 {[%emt 0:10:47]} 12. O-O-O {[%emt 0:12:09] aiming for Nb5. White is more active.} a6 {[%emt 0:15:17] Dodges Nb5} 13. Rhe1 {[%emt 0:15:56]} Nxe3 {[%emt 0:03:48]} 14. Qxe3 {[%emt 0:04:26]} Be7 {[%emt 0:05:16]} 15. Nxc6 {[%emt 0:02:40]} Bxc6 {[%emt 0:00:39]} 16. Ne5 {[%emt 0:00:41]} Bd6 {[%emt 0:04:39]} 17. Be4 {[%emt 0:03:18]} Bxe4 {[%emt 0:02:34]} 18. Qxe4 {[%emt 0:00:04]} Bxe5 {[%emt 0:00:55]} 19. Qxe5 {[%emt 0:00:01]} Qxe5 {[%emt 0:00:06]} 20. Rxe5 $11 {[%emt 0:00:01][%mdl 4096] Endgame KRR-KRR} Ke7 {[%emt 0:02:24]} 21. f4 {[%emt 0:00:47][%cal Bf2f4,Bf4f5][%mdl 32]} h5 {[%emt 0:05:17]} 22. f5 {[%emt 0:01:07]} Kf6 {[%emt 0:00:45][%csl LRe5,LRf5]} 23. Rc5 {[%emt 0:04:17]} Rac8 {[%emt 0:00:39]} 24. Rxc8 {[%emt 0:00:04]} Rxc8 {[%emt 0:00:04] KR-KR} 25. Rd7 {[%emt 0:00:08]} b5 {[%emt 0:01:23]} ({Don't play} 25... Kxf5 26. Rxf7+ Ke4 27. Rxb7 $16 (27. Rxg7 Rf8 $16)) 26. fxe6 {[%emt 0:00:13]} Kxe6 {[%emt 0:00:20]} 27. Ra7 {[%emt 0:00:02]} Rc6 {[%emt 0:00:09]} 28. Kd2 {[%emt 0:00:47]} g5 {[%emt 0:00:39]} 29. Kd3 {[%emt 0:00:53]} f6 {[%emt 0:01:18]} 30. Ke4 {[%emt 0:00:54]} Rc4+ {[%emt 0:00:27]} 31. Ke3 {[%emt 0:00:01]} Rc6 {[%emt 0:00:18]} 32. Ke4 {[%emt 0:01:04]} Rc4+ {[%emt 0:00:05]} 33. Kd3 {[%emt 0:00:11]} Rc6 {[%emt 0:00:04]} (33... Ra4 $5 {[%cal Ra4a2]}) 34. b3 {[%emt 0:01:03]} h4 {[%emt 0:03:07]} 35. c4 {[%emt 0:00:20]} bxc4+ {[%emt 0:00:56]} 36. bxc4 {[%emt 0:00:01]} Ke5 {[%emt 0:00:45]} 37. Rd7 {[%emt 0:01:16]} f5 {[%emt 0:00:48] Threatens to win with ...Rd6+.} 38. Rd5+ {[%emt 0:00:08]} Ke6 {[%emt 0:00:12] Strongly threatening ...Rd6.} 39. Kd4 {[%emt 0:00:36]} g4 {[%emt 0:00:33]} ({Black should try} 39... Rb6 $11) 40. c5 $14 {[%emt 0:00:30]} h3 {[%emt 0:00:50]} ({Black should play} 40... Rc8 $14) 41. gxh3 $1 $16 {[%emt 0:00:38]} gxh3 {[%emt 0:00:02]} 42. Rd8 {[%emt 0:00:43]} f4 {[%emt 0:00:52] [#]} 43. Rf8 {[%emt 0:01:14]} (43. Rh8 $1 $16) 43... Rc7 $14 {[%emt 0:00:16]} 44. Rxf4 {[%emt 0:00:10] Re4+ is the strong threat.} Rd7+ {[%emt 0:00:29] [#]} 45. Kc4 {[%emt 0:01:03]} (45. Kc3 $1 $16) 45... Rd2 $11 {[%emt 0:00:45][%csl LRa2,LRh2] The position is equal.} 46. Re4+ {[%emt 0:00:29]} Kf5 {[%emt 0:00:08]} 47. Rh4 {[%emt 0:00:30]} Rxh2 {[%emt 0:00:22]} 48. c6 {[%emt 0:00:24]} Kg5 {[%emt 0:00:59]} (48... Rxa2 49. Rxh3 Ke6 50. Kc5 $18) 49. Rh8 {[%emt 0:00:07]} Rc2+ {[%emt 0:00:16]} (49... Rxa2 $2 50. Rxh3 Re2 51. c7 Re4+ 52. Kc5 $18) 50. Kd5 {[%emt 0:00:14]} h2 {[%emt 0:00:16]} (50... Rxa2 $2 51. Rxh3 Rc2 52. Kd6 $18) 51. Kd6 {[%emt 0:00:25] Hoping for a4.} Rxa2 {[%emt 0:01:03]} 52. c7 {[%emt 0:00:15]} Rd2+ {[%emt 0:00:07]} 53. Ke5 {[%emt 0:01:03]} Re2+ {[%emt 0:00:28]} 54. Kd6 {[%emt 0:00:15]} Rd2+ {[%emt 0:00:04]} 55. Ke7 {[%emt 0:00:27]} Rc2 {[%emt 0:00:24]} 56. Kd7 {[%emt 0:00:02]} (56. Kd6 $5 Rd2+ $8 $11) 56... Rd2+ {[%emt 0:00:19]} 57. Kc6 {[%emt 0:00:08]} Rc2+ {[%emt 0:01:22]} 58. Kb7 {[%emt 0:00:01]} (58. Kd7 $5 Rd2+ $8 59. Ke6 $11) 58... Rb2+ {[%emt 0:00:09]} 59. Ka7 {[%emt 0:01:32]} Rc2 {[%emt 0:00:08]} 60. Kb7 {[%emt 0:00:12]} Rb2+ {[%emt 0:00:04]} 61. Kxa6 {[%emt 0:00:11]} Rc2 {[%emt 0:00:11]} 62. Kb7 {[%emt 0:00:03]} (62. c8=N Rc6+ 63. Nb6 Rh6 64. Rxh6 Kxh6 $19) 62... Rb2+ {[%emt 0:00:07]} 63. Kc6 {[%emt 0:00:22]} Rc2+ {[%emt 0:00:05]} 64. Kd6 {[%emt 0:00:03][%cal Oh8h2] Black must now prevent Rxh2!} (64. Kb7 $5 Rb2+ $8 65. Kc6 $11) 64... Rd2+ {[%emt 0:00:04]} 65. Ke5 {[%emt 0:00:03]} Re2+ {[%emt 0:00:12]} 66. Kd6 {[%emt 0:01:09]} (66. Kd4 $5 Rc2 $8 67. Ke5 $11) 66... Rd2+ {[%emt 0:00:04]} 67. Ke5 {[%emt 0:00:03] Weighted Error Value: White=0.06 (flawless) /Black=0.08 (flawless)} 1/2-1/2